bitfinex/quotes_BTCUSD_20220303
["timestamp","ask_amount","ask_price","bid_price","bid_amount"]
[1646295080081,0.00017663,43600.0,43594.0,0.1752773]
[1646295080288,0.00017663,43600.0,43595.0,0.354911]
[1646295080483,0.114766,43601.0,43595.0,0.354911]
[1646295080683,0.114766,43601.0,43597.0,0.27848535]
[1646295080984,0.00016473,43599.0,43598.0,0.354911]
[1646295081633,0.00016473,43599.0,43598.0,0.312061]
[1646295081833,0.114766,43601.0,43598.0,0.312061]
[1646295082032,0.11493073,43601.0,43596.0,0.354757]
[1646295082436,0.11493073,43601.0,43599.0,0.27323446]
[1646295082635,0.11493073,43601.0,43600.0,0.354757]
[1646295082832,0.11493073,43601.0,43600.0,0.354754]
[1646295083033,0.11493073,43601.0,43596.0,0.003]
[1646295083034,0.114766,43601.0,43596.0,0.003]
[1646295083332,0.114766,43601.0,43597.0,0.354754]
[1646295083934,0.114766,43601.0,43597.0,0.63298375]
[1646295084534,0.11492597,43601.0,43597.0,0.63298375]
[1646295085367,0.114766,43601.0,43597.0,0.63298375]
[1646295085568,0.11492597,43601.0,43597.0,0.63298375]
[1646295086370,0.11607354,43601.0,43597.0,0.63298375]
[1646295086567,0.11591357,43601.0,43597.0,0.63298375]
[1646295086768,0.11607354,43601.0,43597.0,0.63298375]
[1646295087769,0.11591357,43601.0,43597.0,0.63298375]
[1646295087968,0.11607402,43601.0,43597.0,0.63298375]
[1646295089122,0.11591357,43601.0,43597.0,0.357754]
[1646295089321,0.11607402,43601.0,43597.0,0.357754]
[1646295090224,0.11591357,43601.0,43597.0,0.357754]
[1646295090423,0.11607402,43601.0,43597.0,0.357754]
[1646295090921,0.11607402,43601.0,43597.0,0.354754]
[1646295091122,0.11607402,43601.0,43592.0,0.003]
[1646295091323,0.20248318,43598.0,43593.0,0.354754]
[1646295091525,0.20248318,43598.0,43592.0,0.003]
[1646295091527,0.114782,43598.0,43592.0,0.003]
[1646295091724,0.057391,43597.0,43593.0,0.354754]
[1646295091924,0.057388,43596.0,43593.0,0.354754]
[1646295092124,0.114779,43595.0,43593.0,0.354754]
[1646295092327,0.108519,43595.0,43593.0,0.354754]
[1646295092524,0.102259,43595.0,43593.0,0.354754]
[1646295092969,0.102259,43595.0,43591.0,0.354754]
[1646295093569,0.102259,43595.0,43591.0,0.58108862]
[1646295094172,0.102259,43595.0,43592.0,0.19833264]
[1646295094373,0.102259,43595.0,43593.0,0.354754]
[1646295096620,0.804781,43594.0,43590.0,0.00016044]
[1646295096823,0.804781,43594.0,43573.0,0.1175]
[1646295096824,0.7241,43591.0,43573.0,0.1175]
[1646295097022,0.7241,43591.0,43570.0,0.01260757]
[1646295097023,0.5741,43581.0,43570.0,0.01260757]
[1646295097222,0.5741,43579.0,43570.0,0.01260757]
[1646295097422,0.4459,43580.0,43570.0,0.01260757]
[1646295097423,0.5741,43577.0,43570.0,0.01260757]
[1646295097621,0.5741,43577.0,43570.0,0.00114757]
[1646295097622,0.0459,43576.0,43570.0,0.00114757]
[1646295098223,0.05742,43574.0,43570.0,0.00114757]
[1646295098623,0.0459,43573.0,43571.0,0.190287]
[1646295099023,0.0459,43573.0,43570.0,0.00130816]
[1646295099923,0.0459,43573.0,43570.0,0.00114757]
[1646295100124,0.06077344,43573.0,43570.0,0.00114757]
[1646295100392,0.06077344,43573.0,43571.0,0.190287]
[1646295100584,0.0459,43573.0,43570.0,0.00114757]
[1646295100785,0.05842433,43573.0,43571.0,0.190287]
[1646295100985,0.05842433,43573.0,43570.0,0.00114757]
[1646295101186,0.05842433,43573.0,43571.0,0.005]
[1646295101587,0.0459,43573.0,43571.0,0.005]
[1646295102587,0.0459,43573.0,43570.0,0.00130932]
[1646295103491,0.0459,43573.0,43571.0,0.005]
[1646295104130,0.3,43572.0,43571.0,0.005]
[1646295104334,0.1459,43572.0,43571.0,0.005]
[1646295104732,0.114873,43570.0,43569.0,0.00016176]
[1646295104930,0.4133316,43570.0,43569.0,0.00016176]
[1646295105230,0.21147084,43565.0,43559.0,0.4886]
[1646295105429,0.21147084,43565.0,43558.0,0.17864477]
[1646295105430,0.0459,43564.0,43558.0,0.17864477]
[1646295105732,0.0459,43564.0,43559.0,0.190342]
[1646295106130,0.0459,43564.0,43560.0,0.190351]
[1646295106430,0.0459,43564.0,43561.0,0.190346]
[1646295106431,0.20129072,43563.0,43561.0,0.190346]
[1646295106634,0.20129072,43563.0,43558.0,0.17864477]
[1646295106635,0.0459,43562.0,43558.0,0.17864477]
[1646295106930,0.0459,43562.0,43559.0,0.190355]
[1646295108182,0.0459,43562.0,43558.0,0.17864477]
[1646295108387,0.0459,43562.0,43559.0,0.190357]
[1646295108583,0.103332,43562.0,43559.0,0.190357]
[1646295109685,0.057433,43564.0,43559.0,0.190357]
[1646295110085,0.057414,43568.0,43559.0,0.213347]
[1646295110285,0.057414,43568.0,43564.0,0.190328]
[1646295110485,0.057417,43566.0,43565.0,0.50765954]
[1646295110686,0.057417,43566.0,43565.0,0.39798254]
[1646295111486,0.057417,43566.0,43564.0,0.00018814]
[1646295111487,0.26334322,43566.0,43564.0,0.00018814]
[1646295111737,0.26334322,43566.0,43560.0,0.005]
[1646295111738,0.24167764,43566.0,43560.0,0.005]
[1646295111937,0.492646,43565.0,43560.0,0.005]
[1646295112136,0.0459,43564.0,43563.0,0.00018814]
[1646295112336,0.400681,43564.0,43563.0,0.00018814]
[1646295112535,0.0459,43564.0,43563.0,0.00018814]
[1646295112734,0.400681,43564.0,43563.0,0.00018814]
[1646295112935,0.0459,43564.0,43563.0,0.00018814]
[1646295113139,0.16077,43564.0,43559.0,0.16958976]
[1646295113334,0.16077,43564.0,43561.0,0.00018814]
[1646295114335,0.01267816,43563.0,43559.0,0.16958976]
[1646295114535,0.01267816,43563.0,43560.0,0.00017961]
[1646295114536,0.01464074,43561.0,43560.0,0.00017961]
[1646295114736,0.0459,43561.0,43560.0,0.00017961]
[1646295115135,0.45,43560.0,43552.0,0.3]
[1646295115388,0.45,43560.0,43552.0,0.190395]
[1646295115389,0.114887,43558.0,43552.0,0.190395]
[1646295115588,0.114883,43559.0,43556.0,0.19312172]
[1646295115589,0.103341,43557.0,43556.0,0.19312172]
[1646295115787,0.103341,43557.0,43556.0,0.38349772]
[1646295118190,0.103341,43557.0,43536.0,0.11487852]
[1646295118191,1.0,43556.0,43536.0,0.11487852]
[1646295118393,1.0,43556.0,43531.0,0.124867]
[1646295118394,0.850723,43555.0,43531.0,0.01]
[1646295118593,0.5741,43544.0,43531.0,0.01]
[1646295118893,0.0459,43543.0,43531.0,0.01]
[1646295119326,0.0459,43543.0,43539.0,0.23294093]
[1646295119523,0.057468,43540.0,43539.0,0.23294093]
[1646295119723,0.0459,43543.0,43541.0,0.45251213]
[1646295120123,0.0459,43548.0,43541.0,0.45251213]
[1646295120322,0.057448,43550.0,43546.0,0.20512153]
[1646295120522,0.057448,43550.0,43541.0,0.45251213]
[1646295120722,0.114893,43547.0,43541.0,0.45251213]
[1646295121321,0.114893,43547.0,43542.0,0.02299]
[1646295121532,0.414907,43549.0,43542.0,0.3]
[1646295121533,0.114896,43546.0,43542.0,0.3]
[1646295121825,0.057446,43546.0,43542.0,0.2495604]
[1646295122223,0.057446,43546.0,43541.0,0.70207253]
[1646295122423,0.057446,43546.0,43542.0,0.174673]
[1646295122623,0.057446,43546.0,43544.0,0.0601206]
[1646295123101,0.114894,43546.0,43542.0,0.174673]
[1646295123703,0.114894,43546.0,43542.0,0.474673]
[1646295123904,0.114894,43546.0,43545.0,0.15755492]
[1646295124106,0.114885,43554.0,43546.0,0.02299]
[1646295124304,0.126376,43560.0,43549.0,0.2495604]
[1646295124305,0.15290767,43557.0,43549.0,0.2495604]
[1646295124504,0.15290767,43560.0,43550.0,0.3]
[1646295124704,0.15290767,43560.0,43551.0,0.0459]
[1646295124904,0.15,43565.0,43559.0,0.07409793]
[1646295125104,0.1,43565.0,43563.0,0.21768679]
[1646295125305,0.01146,43570.0,43563.0,0.21768679]
[1646295125505,0.16576918,43573.0,43563.0,0.21768679]
[1646295125506,0.0007523,43572.0,43563.0,0.21768679]
[1646295125705,0.0113452,43571.0,43563.0,0.21768679]
[1646295125905,0.22106321,43571.0,43563.0,0.21768679]
[1646295126105,0.20971801,43571.0,43563.0,0.21768679]
[1646295126509,0.20290544,43569.0,43563.0,0.21768679]
[1646295126722,0.20971801,43571.0,43563.0,0.21768679]
[1646295127322,0.26713201,43571.0,43563.0,0.21768679]
[1646295127521,0.26713201,43571.0,43563.0,0.47124719]
[1646295127724,0.26713201,43571.0,43564.0,0.27358921]
[1646295129525,0.26713201,43571.0,43564.0,0.27758921]
[1646295129724,0.20327829,43570.0,43564.0,0.27758921]
[1646295130780,0.20327829,43570.0,43564.0,0.27358921]
[1646295130982,0.26713201,43571.0,43564.0,0.27358921]
[1646295132782,0.26713201,43571.0,43565.0,0.17543117]
[1646295133083,0.20971801,43571.0,43565.0,0.17543117]
[1646295133283,0.20971801,43571.0,43568.0,0.21821909]
[1646295134526,0.18386181,43570.0,43565.0,0.004]
[1646295134721,0.18386181,43570.0,43564.0,0.27358921]
[1646295135221,0.20971801,43571.0,43564.0,0.27358921]
[1646295135421,0.20971801,43571.0,43564.0,0.44777496]
[1646295136322,0.20971801,43571.0,43565.0,0.17760295]
[1646295137724,0.20971801,43571.0,43569.0,0.2495604]
[1646295138171,0.20971801,43571.0,43569.0,0.2954604]
[1646295138372,0.20971801,43571.0,43569.0,0.35704832]
[1646295138970,0.20971801,43571.0,43569.0,0.10748792]
[1646295139371,0.20971801,43571.0,43570.0,0.0023164]
[1646295139971,0.20971801,43571.0,43569.0,0.2525604]
[1646295140770,0.20971801,43571.0,43569.0,0.2495604]
[1646295140972,0.20971801,43571.0,43570.0,0.0023164]
[1646295141640,0.20971801,43571.0,43570.0,0.0512164]
[1646295141839,0.20971801,43571.0,43570.0,0.16600773]
[1646295142040,0.20971801,43571.0,43570.0,0.86780773]
[1646295142349,0.05,43577.0,43570.0,0.96780773]
[1646295142540,0.00069587,43579.0,43575.0,0.2495604]
[1646295142740,0.00069587,43579.0,43578.0,0.20998322]
[1646295142941,0.00069587,43579.0,43578.0,0.25588322]
[1646295143140,0.3,43580.0,43578.0,0.41893682]
[1646295143541,0.3,43580.0,43579.0,0.27484369]
[1646295143744,0.3,43580.0,43579.0,0.32074369]
[1646295144742,0.3,43580.0,43579.0,0.57030409]
[1646295145046,0.3,43580.0,43579.0,0.73272818]
[1646295145244,0.3,43580.0,43579.0,0.48316778]
[1646295145483,0.3,43580.0,43579.0,0.73572818]
[1646295146183,0.3,43580.0,43579.0,0.32374369]
[1646295146383,0.3,43580.0,43579.0,0.57330409]
[1646295146787,0.3,43580.0,43579.0,0.57030409]
[1646295146985,0.3,43580.0,43579.0,0.32074369]
[1646295147184,0.3,43580.0,43579.0,0.78330412]
[1646295147590,0.3,43580.0,43579.0,0.78630412]
[1646295148585,0.3,43580.0,43579.0,1.78810412]
[1646295148785,0.3,43580.0,43579.0,1.78510412]
[1646295149623,0.3,43580.0,43579.0,1.78810412]
[1646295150419,0.3,43580.0,43579.0,1.57510409]
[1646295150622,0.3,43580.0,43579.0,0.87330409]
[1646295150824,0.3,43580.0,43579.0,0.57330409]
[1646295151022,0.3,43580.0,43579.0,0.57030409]
[1646295152024,0.3,43580.0,43579.0,0.32074369]
[1646295152875,0.3,43580.0,43579.0,0.57030409]
[1646295153072,0.3,43580.0,43579.0,0.2954604]
[1646295153476,0.3,43580.0,43572.0,0.0459]
[1646295153773,0.3,43580.0,43574.0,0.004]
[1646295154174,0.19849344,43577.0,43574.0,0.004]
[1646295154776,0.19849344,43577.0,43570.0,0.01146]
[1646295155378,0.057416,43578.0,43570.0,0.01146]
[1646295155976,0.057416,43578.0,43574.0,0.26194637]
[1646295156175,0.057414,43577.0,43574.0,0.26194637]
[1646295156475,0.057414,43577.0,43570.0,0.01146]
[1646295156476,0.23639123,43577.0,43570.0,0.01146]
[1646295156724,0.3,43580.0,43570.0,0.01146]
[1646295157325,0.50704627,43580.0,43572.0,0.28371437]
[1646295157524,0.3,43580.0,43572.0,0.28371437]
[1646295158327,0.16431865,43578.0,43572.0,0.28371437]
[1646295158528,0.3,43580.0,43572.0,0.28371437]
[1646295158930,0.357409,43580.0,43572.0,0.28371437]
[1646295159333,0.357409,43580.0,43570.0,0.01146]
[1646295159531,0.357409,43580.0,43572.0,0.003]
[1646295159729,0.17884829,43575.0,43572.0,0.003]
[1646295160396,0.057412,43578.0,43573.0,0.26992039]
[1646295161194,0.3,43580.0,43573.0,0.26992039]
[1646295161596,0.3,43580.0,43573.0,0.27292039]
[1646295161994,0.3,43580.0,43574.0,0.3]
[1646295162397,0.3,43580.0,43578.0,0.1788659]
[1646295162598,0.3,43580.0,43578.0,0.3837587]
[1646295162798,0.3,43580.0,43578.0,0.1788659]
[1646295162997,0.3,43580.0,43579.0,0.0023164]
[1646295163598,0.3,43580.0,43579.0,0.0053164]
[1646295163798,0.3,43580.0,43579.0,0.0052393]
[1646295164929,0.3,43580.0,43579.0,0.0022393]
[1646295165329,0.3,43580.0,43574.0,0.3]
[1646295165530,0.3,43580.0,43574.0,0.003]
[1646295166530,0.3,43580.0,43578.0,0.0022393]
[1646295166732,0.3,43580.0,43579.0,0.0022393]
[1646295167335,0.3,43580.0,43575.0,0.2495604]
[1646295167532,0.3,43580.0,43579.0,0.003]
[1646295168383,0.30162598,43580.0,43579.0,0.003]
[1646295168575,0.30162598,43580.0,43579.0,0.0052393]
[1646295168977,0.30162598,43580.0,43579.0,0.0022393]
[1646295169578,0.30162598,43580.0,43579.0,0.0052393]
[1646295170986,0.30162598,43580.0,43579.0,0.0022393]
[1646295173438,0.30297015,43580.0,43579.0,0.0022393]
[1646295175139,0.30297015,43580.0,43574.0,0.003]
[1646295175593,0.30297015,43580.0,43574.0,0.001]
[1646295176593,0.36038415,43580.0,43574.0,0.001]
[1646295176796,0.30297015,43580.0,43572.0,0.21089824]
[1646295177294,0.30297015,43580.0,43577.0,0.23134783]
[1646295177796,0.30297015,43580.0,43572.0,0.51089824]
[1646295178195,0.30297015,43580.0,43574.0,0.06317973]
[1646295178397,0.30297015,43580.0,43575.0,0.3]
[1646295178898,0.30297015,43580.0,43576.0,0.28802244]
[1646295179837,0.30297015,43580.0,43576.0,0.29102244]
[1646295180543,0.47963418,43580.0,43576.0,0.003]
[1646295180839,0.53704318,43580.0,43576.0,0.003]
[1646295181139,0.53704318,43580.0,43572.0,0.21089824]
[1646295181552,0.53658768,43580.0,43574.0,0.22601336]
[1646295181940,0.33419412,43576.0,43574.0,0.22601336]
[1646295182140,0.33419412,43576.0,43572.0,0.21089824]
[1646295182540,0.02387101,43579.0,43572.0,0.21089824]
[1646295182541,0.33419412,43575.0,43572.0,0.21089824]
[1646295182987,0.33419412,43574.0,43569.0,0.12]
[1646295183187,0.33419412,43574.0,43564.0,0.3]
[1646295183386,0.33419412,43574.0,43571.0,0.2510918]
[1646295183892,0.33419412,43574.0,43568.0,0.3]
[1646295184089,0.33419412,43574.0,43569.0,0.20601822]
[1646295184888,0.33419412,43575.0,43571.0,0.25106299]
[1646295185088,0.15426708,43579.0,43569.0,0.20601822]
[1646295185089,0.33419412,43574.0,43569.0,0.20601822]
[1646295185992,0.21373179,43573.0,43568.0,0.3]
[1646295186193,0.21373179,43573.0,43561.0,0.29447717]
[1646295186194,0.33419412,43571.0,43564.0,0.1129]
[1646295186389,0.21373179,43573.0,43564.0,0.1129]
[1646295186390,0.33419412,43569.0,43564.0,0.1129]
[1646295186654,0.33419412,43569.0,43561.0,0.1915]
[1646295186850,0.21373179,43573.0,43560.0,0.2495604]
[1646295186851,0.33419412,43568.0,43560.0,0.2495604]
[1646295187151,0.33419412,43568.0,43566.0,0.25514903]
[1646295187350,0.33419412,43569.0,43566.0,0.25514903]
[1646295188049,0.33419412,43569.0,43564.0,0.16744956]
[1646295188953,0.33419412,43569.0,43564.0,0.41700996]
[1646295189150,0.33419412,43569.0,43565.0,0.2803769]
[1646295189352,0.33419412,43570.0,43565.0,0.2803769]
[1646295189952,0.33419412,43570.0,43569.0,0.06637122]
[1646295190154,0.33419412,43572.0,43571.0,0.20172044]
[1646295191985,0.33419412,43572.0,43566.0,0.003]
[1646295192382,0.33419412,43572.0,43567.0,0.07156965]
[1646295192985,0.33419412,43572.0,43568.0,0.21308218]
[1646295193385,0.33538015,43572.0,43568.0,0.21308218]
[1646295196546,0.33419412,43570.0,43564.0,0.2495604]
[1646295196746,0.33419412,43569.0,43564.0,0.2495604]
[1646295196945,0.2864506,43567.0,43564.0,0.2495604]
[1646295197147,0.2864506,43566.0,43564.0,0.2495604]
[1646295197343,0.16056874,43568.0,43563.0,0.003]
[1646295197344,0.2864506,43567.0,43563.0,0.003]
[1646295197544,0.2864506,43566.0,43563.0,0.003]
[1646295198386,0.2864506,43567.0,43563.0,0.003]
[1646295199182,0.2864506,43566.0,43562.0,0.15788011]
[1646295199583,0.2864506,43567.0,43562.0,0.15788011]
[1646295199984,0.2864506,43567.0,43562.0,0.16088011]
[1646295200285,0.2864506,43567.0,43563.0,0.2495604]
[1646295200483,0.2864506,43568.0,43563.0,0.2495604]
[1646295200783,0.2864506,43569.0,43563.0,0.2495604]
[1646295200983,0.2864506,43568.0,43563.0,0.2495604]
[1646295201282,0.2864506,43569.0,43563.0,0.2495604]
[1646295203038,0.2864506,43569.0,43567.0,0.22840328]
[1646295203437,0.00120509,43568.0,43567.0,0.22840328]
[1646295204037,0.00120509,43568.0,43567.0,0.003]
[1646295205239,0.00120509,43568.0,43563.0,0.2495604]
[1646295205481,0.00120509,43568.0,43563.0,0.24949587]
[1646295206078,0.00120509,43568.0,43564.0,0.26679942]
[1646295206583,0.00120509,43568.0,43565.0,0.24949587]
[1646295207279,0.00120509,43568.0,43567.0,0.18340149]
[1646295207681,0.00120509,43568.0,43567.0,0.18564079]
[1646295207881,0.00120509,43568.0,43567.0,0.0022393]
[1646295208180,0.00120509,43568.0,43567.0,0.0052393]
[1646295208881,0.00120509,43568.0,43567.0,0.16495415]
[1646295209147,0.00120509,43568.0,43567.0,0.51085415]
[1646295209347,0.00120509,43568.0,43567.0,0.50785415]
[1646295209547,0.2864506,43574.0,43568.0,0.00241018]
[1646295209751,0.2864506,43575.0,43572.0,0.0022393]
[1646295209947,0.2864506,43574.0,43572.0,0.28875]
[1646295210147,0.2864506,43574.0,43573.0,0.0022393]
[1646295210350,0.2764506,43574.0,43573.0,0.0022393]
[1646295210949,0.33419412,43576.0,43573.0,0.0022393]
[1646295211148,0.33419412,43576.0,43571.0,0.46983559]
[1646295211549,0.33419412,43576.0,43571.0,0.22033972]
[1646295211747,0.33419412,43576.0,43571.0,0.46983559]
[1646295211949,0.33419412,43576.0,43571.0,0.47283559]
[1646295212651,0.33419412,43576.0,43571.0,0.22333972]
[1646295212883,0.33419412,43576.0,43571.0,0.47283559]
[1646295213280,0.33419412,43576.0,43571.0,0.46983559]
[1646295213680,0.00260836,43574.0,43571.0,0.46983559]
[1646295213880,0.00260836,43574.0,43573.0,0.0022393]
[1646295215980,0.00260836,43574.0,43573.0,0.0052393]
[1646295216830,0.00260836,43574.0,43573.0,0.06946967]
[1646295217429,0.00260836,43574.0,43573.0,0.36946967]
[1646295217630,0.00260836,43574.0,43573.0,0.41536967]
[1646295217829,0.00260836,43574.0,43573.0,0.51236967]
[1646295218031,0.3,43580.0,43573.0,1.21816967]
[1646295218332,0.3,43580.0,43579.0,0.24949587]
[1646295218529,0.58592826,43580.0,43579.0,0.83744319]
[1646295219329,0.3,43580.0,43579.0,0.83744319]
[1646295220129,0.3,43580.0,43579.0,0.84044319]
[1646295221783,0.3,43580.0,43579.0,0.98634319]
[1646295221982,0.3,43580.0,43579.0,0.98334319]
[1646295223487,0.3,43580.0,43579.0,0.98493202]
[1646295224128,0.3,43580.0,43579.0,0.98893202]
[1646295225330,0.3,43580.0,43579.0,0.98493202]
[1646295225830,0.3,43580.0,43579.0,1.19700681]
[1646295226034,0.3,43580.0,43579.0,1.20100681]
[1646295227034,0.3,43580.0,43579.0,1.90280681]
[1646295227236,0.051,43587.0,43581.0,0.24949587]
[1646295227437,0.051,43587.0,43580.0,1.81655698]
[1646295227438,0.001,43587.0,43585.0,0.25173517]
[1646295227637,0.001,43587.0,43586.0,0.3481393]
[1646295227884,0.001,43587.0,43586.0,0.57213218]
[1646295228084,0.001,43587.0,43586.0,0.74421411]
[1646295228285,0.001,43587.0,43586.0,1.63839493]
[1646295228885,0.001,43587.0,43586.0,1.63795533]
[1646295229084,0.001,43587.0,43586.0,1.73795533]
[1646295230186,0.001,43587.0,43586.0,1.76594533]
[1646295230384,0.001,43587.0,43586.0,1.74295533]
[1646295230585,0.001,43587.0,43586.0,1.76594533]
[1646295231388,0.001,43591.0,43588.0,0.7018]
[1646295231641,0.001,43591.0,43590.0,0.07326043]
[1646295231844,0.001,43591.0,43590.0,0.51916043]
[1646295232640,0.001,43591.0,43590.0,0.4481393]
[1646295233642,0.001,43591.0,43590.0,1.1499393]
[1646295234244,0.001,43591.0,43590.0,0.8499393]
[1646295234444,0.001,43591.0,43590.0,0.91754324]
[1646295234644,0.001,43591.0,43590.0,1.21754324]
[1646295234843,0.001,43591.0,43590.0,0.91754324]
[1646295235482,0.001,43591.0,43590.0,0.4481393]
[1646295236284,0.001,43591.0,43590.0,1.1499393]
[1646295236687,0.001,43591.0,43590.0,0.66091978]
[1646295236884,0.001,43591.0,43590.0,1.36271978]
[1646295237683,0.001,43591.0,43590.0,1.38570978]
[1646295238087,0.001,43591.0,43590.0,1.53570978]
[1646295238286,0.002,43603.0,43597.0,0.7018]
[1646295238287,0.00075632,43599.0,43597.0,0.7018]
[1646295238487,0.00075632,43599.0,43598.0,1.0499393]
[1646295238689,0.001,43608.0,43600.0,0.7018]
[1646295238690,6.32e-06,43608.0,43600.0,0.7018]
[1646295238890,6.32e-06,43608.0,43606.0,0.75914885]
[1646295239146,6.32e-06,43608.0,43607.0,0.3459]
[1646295239953,6.32e-06,43608.0,43607.0,0.3481393]
[1646295240357,0.001,43611.0,43610.0,1.7018]
[1646295240552,0.003,43613.0,43612.0,0.75]
[1646295240750,0.003,43613.0,43612.0,1.0981393]
[1646295241150,0.001,43614.0,43613.0,1.85904574]
[1646295241353,0.001,43615.0,43614.0,1.7018]
[1646295241552,0.001,43615.0,43614.0,1.98037439]
[1646295241754,0.001,43615.0,43614.0,1.27857439]
[1646295242155,0.01345,43621.0,43619.0,0.7018]
[1646295242156,0.01145,43621.0,43619.0,0.7018]
[1646295242352,0.15330643,43631.0,43621.0,0.7018]
[1646295242551,0.15330643,43631.0,43621.0,0.0481393]
[1646295242552,0.001,43631.0,43621.0,0.0481393]
[1646295242753,0.003,43622.0,43621.0,0.1481393]
[1646295242988,0.003,43622.0,43621.0,0.1501393]
[1646295243190,0.003,43622.0,43621.0,0.8519393]
[1646295243389,0.003,43622.0,43621.0,0.1501393]
[1646295243689,0.003,43622.0,43621.0,0.0501393]
[1646295244291,0.02599,43622.0,43621.0,0.0481393]
[1646295244495,0.02599,43622.0,43621.0,0.0022393]
[1646295244689,0.02599,43622.0,43616.0,0.21669622]
[1646295245191,0.02599,43622.0,43621.0,0.003]
[1646295245793,0.48446035,43622.0,43621.0,0.003]
[1646295246193,0.48446035,43622.0,43616.0,0.19143301]
[1646295246393,0.22819988,43622.0,43616.0,0.19143301]
[1646295246833,0.003,43622.0,43616.0,0.19143301]
[1646295247037,0.003,43622.0,43616.0,0.19443301]
[1646295247232,0.003,43622.0,43616.0,0.17528971]
[1646295247432,0.25865139,43621.0,43616.0,0.17528971]
[1646295247633,0.003,43622.0,43616.0,0.17528971]
[1646295247936,0.00019031,43621.0,43616.0,0.17528971]
[1646295248334,0.00019031,43621.0,43616.0,0.17228971]
[1646295248534,0.02299,43620.0,43610.0,0.21658334]
[1646295248934,0.02299,43620.0,43616.0,0.003]
[1646295249538,0.080346,43620.0,43616.0,0.003]
[1646295249738,0.15980458,43619.0,43616.0,0.003]
[1646295250136,0.15980458,43619.0,43609.0,0.3]
[1646295250399,0.15980458,43619.0,43609.0,0.22535722]
[1646295250699,0.15980458,43619.0,43608.0,0.47315378]
[1646295250900,0.15980458,43619.0,43608.0,0.3]
[1646295250901,0.18279458,43619.0,43608.0,0.3]
[1646295251099,0.057364,43616.0,43608.0,0.3]
[1646295251498,0.057364,43616.0,43610.0,0.25829834]
[1646295251699,0.02318031,43618.0,43610.0,0.25829834]
[1646295252499,0.02299,43618.0,43608.0,0.3]
[1646295252702,0.16902902,43612.0,43609.0,0.21406377]
[1646295252899,0.06907176,43618.0,43611.0,0.0022393]
[1646295253099,0.06907176,43618.0,43609.0,0.21406377]
[1646295253501,0.06889,43618.0,43609.0,0.21406377]
[1646295253701,0.02299,43617.0,43609.0,0.21568097]
[1646295254129,0.20070118,43616.0,43609.0,0.21568097]
[1646295254735,0.02299,43617.0,43609.0,0.21568097]
[1646295255832,0.28685336,43617.0,43609.0,0.21568097]
[1646295256032,0.02299,43613.0,43609.0,0.21568097]
[1646295256235,0.01253292,43619.0,43609.0,0.21568097]
[1646295256236,0.0459,43615.0,43609.0,0.21568097]
[1646295256435,0.0459,43617.0,43609.0,0.21568097]
[1646295257034,0.00017571,43618.0,43609.0,0.51968097]
[1646295257238,0.115435,43622.0,43616.0,0.17126839]
[1646295257535,0.00017571,43618.0,43616.0,0.15414156]
[1646295257735,0.00017571,43618.0,43617.0,0.0022393]
[1646295257991,0.00017571,43618.0,43609.0,0.3056172]
[1646295258188,0.00017571,43618.0,43609.0,0.0056172]
[1646295258189,0.26695802,43616.0,43609.0,0.0056172]
[1646295258588,0.00017571,43618.0,43609.0,0.004]
[1646295258889,0.00017571,43618.0,43611.0,0.21579822]
[1646295259691,0.02299,43619.0,43614.0,0.25212035]
[1646295259892,0.00017612,43618.0,43612.0,0.3]
[1646295260289,0.03508042,43622.0,43612.0,0.3]
[1646295260789,0.01209042,43622.0,43612.0,0.3]
[1646295260991,0.02299,43620.0,43612.0,0.55070136]
[1646295261193,0.057351,43621.0,43618.0,0.17757923]
[1646295262052,0.3018945,43621.0,43618.0,0.17757923]
[1646295262253,0.21255282,43619.0,43618.0,0.17757923]
[1646295262456,0.057351,43621.0,43618.0,0.17757923]
[1646295263154,0.057351,43621.0,43618.0,0.17857923]
[1646295263354,0.057351,43621.0,43618.0,0.17357923]
[1646295263556,0.057351,43621.0,43618.0,0.001]
[1646295263755,0.080341,43621.0,43618.0,0.001]
[1646295263958,0.057351,43621.0,43618.0,0.001]
[1646295264155,0.080341,43621.0,43618.0,0.001]
[1646295264357,0.080341,43621.0,43609.0,0.4212]
[1646295264655,0.15678332,43618.0,43612.0,0.43237813]
[1646295264857,0.057356,43617.0,43612.0,0.17023605]
[1646295265254,0.057356,43617.0,43609.0,0.1252]
[1646295265483,0.00310072,43622.0,43610.0,0.3]
[1646295265683,0.00291042,43622.0,43610.0,0.3]
[1646295265884,0.0001903,43620.0,43609.0,0.004]
[1646295266283,0.0001903,43620.0,43613.0,0.0022393]
[1646295266483,0.0001903,43620.0,43619.0,0.1880196]
[1646295266682,0.0001903,43620.0,43619.0,0.1902589]
[1646295266883,0.20945982,43621.0,43609.0,0.35735005]
[1646295267084,0.20945982,43621.0,43619.0,0.001]
[1646295267687,0.00310072,43622.0,43619.0,0.001]
[1646295267984,0.00291042,43622.0,43619.0,0.001]
[1646295268384,0.00291042,43622.0,43618.0,0.18579504]
[1646295268585,0.057352,43621.0,43618.0,0.18579504]
[1646295269773,0.057352,43621.0,43615.0,0.22397148]
[1646295269972,0.057352,43621.0,43613.0,0.002]
[1646295270380,0.057352,43621.0,43610.0,0.11469148]
[1646295270573,9.801e-05,43620.0,43610.0,0.11469148]
[1646295270974,9.801e-05,43620.0,43614.0,0.19363402]
[1646295271574,0.057352,43621.0,43614.0,0.19363402]
[1646295271975,0.00019026,43620.0,43614.0,0.19363402]
[1646295272374,0.00019026,43620.0,43614.0,0.89543402]
[1646295272575,0.00019026,43620.0,43616.0,0.24949587]
[1646295272774,0.00291042,43622.0,43617.0,0.11466931]
[1646295272989,0.00291042,43622.0,43620.0,0.0726242]
[1646295273187,0.00291042,43622.0,43620.0,0.39386299]
[1646295273389,0.00291042,43622.0,43621.0,0.0022393]
[1646295274388,0.00291042,43622.0,43621.0,0.20886893]
[1646295274588,0.00291042,43622.0,43621.0,0.0022393]
[1646295275788,0.00291042,43622.0,43621.0,0.06319222]
[1646295276192,0.00291042,43622.0,43621.0,0.0022393]
[1646295279333,0.00291042,43622.0,43621.0,0.0062393]
[1646295279933,0.00291042,43622.0,43621.0,0.2007969]
[1646295280135,0.00291042,43622.0,43621.0,0.0062393]